bitfinex/quotes_ETHUSD_20250721
["timestamp","ask_amount","ask_price","bid_price","bid_amount"]
[1753106576339,0.002,3817.5,3817.4,2.61958401]
[1753106576495,0.002,3817.5,3817.4,5.64577985]
[1753106576696,0.002,3817.5,3817.4,6.08037985]
[1753106579738,0.002,3817.5,3817.4,6.21077985]
[1753106580125,0.002,3817.5,3817.4,10.35458401]
[1753106580449,0.002,3817.5,3817.4,10.22418401]
[1753106581335,0.002,3817.5,3817.4,9.78958401]
[1753106581913,0.002,3817.5,3817.4,5.61958401]
[1753106582721,0.002,3817.5,3817.4,6.05418401]
[1753106582928,0.002,3817.5,3817.4,5.61958401]
[1753106583547,0.002,3817.5,3817.4,7.36476915]
[1753106583746,0.002,3817.5,3817.4,7.46897331]
[1753106583949,1e-08,3817.5,3817.4,7.46897331]
[1753106585549,0.02,3817.9,3817.4,7.46897331]
[1753106585550,1e-08,3817.9,3817.8,2.61930955]
[1753106585750,0.002,3818.1,3818.0,5.61917234]
[1753106585949,0.002,3818.1,3818.0,9.78717234]
[1753106586109,0.002,3818.1,3818.0,10.22177234]
[1753106586314,1e-08,3818.1,3818.0,10.35217234]
[1753106586545,0.1504,3818.9,3818.2,2.61903514]
[1753106586745,0.1504,3818.9,3818.8,2.61862365]
[1753106586987,0.02,3818.9,3818.8,6.78662365]
[1753106587152,0.02,3818.9,3818.8,7.22122365]
[1753106587650,0.02,3818.9,3818.8,6.78662365]
[1753106588740,0.1504,3818.9,3818.8,6.78662365]
[1753106588915,0.1504,3818.9,3818.8,4.168]
[1753106589114,0.1504,3818.9,3818.6,2.61870184]
[1753106589318,0.4453,3818.8,3817.4,1.2843893]
[1753106589641,0.4453,3818.8,3817.4,0.62775284]
[1753106589839,0.1304,3817.9,3817.3,0.1304]
[1753106590155,0.1304,3817.6,3817.3,6.78665103]
[1753106590456,0.1304,3817.6,3817.5,2.61951538]
[1753106590621,0.1304,3817.6,3817.4,5.61956512]
[1753106590833,0.1304,3817.6,3817.5,2.61951538]
[1753106591234,0.1304,3817.6,3817.5,4.33818942]
[1753106591563,0.1304,3817.6,3817.5,3.90358942]
[1753106591765,0.1304,3817.6,3817.4,5.61958314]
[1753106592267,0.1304,3817.6,3817.4,7.167]
[1753106592570,0.1304,3817.6,3817.4,9.7865693]
[1753106592867,0.1304,3817.6,3817.5,2.61951538]
[1753106593067,0.1304,3817.6,3817.4,9.7865727]
[1753106593369,0.1304,3817.6,3817.5,2.61951538]
[1753106593568,0.1304,3817.6,3817.5,3.59816692]
[1753106594632,0.002,3818.4,3817.5,1.43944669]
[1753106594943,0.002,3818.4,3818.3,2.61896655]
[1753106595158,0.1304,3818.3,3818.2,2.61898681]
[1753106595864,0.1304,3818.3,3818.2,6.14280095]
[1753106596072,0.1304,3818.3,3818.2,6.57740095]
[1753106597574,0.1304,3818.3,3818.2,6.14280095]
[1753106597939,0.002,3818.4,3818.3,5.61896655]
[1753106598139,0.002,3818.4,3818.3,10.22636655]
[1753106598438,0.002,3818.4,3818.3,11.83823876]
[1753106598869,1e-08,3818.4,3818.3,11.83823876]
[1753106599073,1e-08,3818.4,3818.3,12.38823876]
[1753106602170,1e-08,3818.4,3818.3,7.67223876]
[1753106602379,1e-08,3818.4,3818.3,11.83723876]
[1753106602738,1e-08,3818.4,3818.3,7.67223876]
[1753106603135,1e-08,3818.4,3818.3,11.83723876]
[1753106606795,1e-08,3818.4,3818.3,12.38723876]
[1753106608244,1e-08,3818.4,3818.3,11.83723876]
[1753106608866,1e-08,3818.4,3818.3,7.67223876]
[1753106609039,1e-08,3818.4,3818.3,11.39483876]
[1753106609378,1e-08,3818.4,3818.3,2.61896655]
[1753106609604,0.13040001,3818.4,3818.3,5.61896655]
[1753106610004,0.57710001,3818.4,3817.9,2.61919561]
[1753106610181,0.1304,3818.1,3817.6,0.19532343]
[1753106610381,0.4467,3818.0,3817.5,2.74989244]
[1753106610588,0.4467,3818.0,3817.1,2.61974601]
[1753106610589,0.1304,3817.7,3817.1,0.1304]
[1753106610774,0.4467,3817.9,3816.5,2.62013863]
[1753106611118,0.4467,3817.6,3816.4,0.19167252]
[1753106611318,0.1304,3816.9,3816.8,2.6199958]
[1753106611820,0.1304,3816.9,3816.3,3.0]
[1753106611987,0.1304,3816.9,3816.7,2.6200443]
[1753106611988,0.5771,3816.9,3816.7,2.6200443]
[1753106612182,0.1304,3816.9,3816.8,2.6199958]
[1753106613498,0.4467,3817.8,3817.4,2.61953056]
[1753106613700,0.4467,3817.8,3817.6,2.61943009]
[1753106614009,0.4467,3817.8,3817.6,2.61944143]
[1753106614178,0.4467,3817.8,3817.6,2.61938523]
[1753106614376,0.1304,3817.6,3817.5,5.61951538]
[1753106616516,1e-08,3818.4,3817.6,3.0]
[1753106616674,0.1304,3818.2,3818.1,2.61905695]
[1753106617017,1e-08,3818.4,3818.3,2.61896655]
[1753106617210,1e-08,3818.4,3818.3,5.61896655]
[1753106618506,1e-08,3818.4,3818.3,6.06036655]
[1753106618689,1e-08,3818.4,3818.3,7.47762794]
[1753106618985,1e-08,3818.4,3818.3,7.03622794]
[1753106619176,1e-08,3818.4,3818.3,5.74936655]
[1753106619583,1e-08,3818.4,3818.3,9.93755621]
[1753106619782,1e-08,3818.4,3818.3,10.35276655]
[1753106620281,1e-08,3818.4,3818.3,9.91136655]
[1753106622219,1e-08,3818.4,3818.3,3.0]
[1753106622379,1e-08,3818.4,3818.3,2.61896655]
[1753106623035,1e-08,3818.4,3818.3,3.90213906]
[1753106623321,1e-08,3818.4,3818.3,3.4345494]
[1753106623519,1e-08,3818.4,3818.3,2.61896655]
[1753106628454,0.7763,3818.3,3818.0,5.61912491]
[1753106628608,0.4615,3818.2,3817.8,3.0]
[1753106628810,0.7763,3818.3,3817.8,3.0]
[1753106629017,0.4615,3818.1,3817.8,2.61929612]
[1753106629341,0.1304,3817.8,3817.6,3.0]
[1753106629550,0.1304,3817.8,3817.7,4.10467815]
[1753106629756,1e-08,3818.4,3818.3,2.61896655]
[1753106631434,1e-08,3818.4,3818.3,3.08826655]
[1753106632236,1e-08,3818.4,3818.3,5.61896655]
[1753106633705,0.77810001,3818.4,3818.3,2.61896655]
[1753106633910,1.23960001,3818.4,3818.3,2.61896655]
[1753106634109,0.77810001,3818.4,3818.3,2.61896655]
[1753106634309,1e-08,3818.4,3818.3,2.61896655]
[1753106635714,0.1304,3818.3,3818.2,2.61902326]
[1753106635909,1.343,3818.3,3817.6,0.1304]
[1753106636109,0.1304,3817.7,3817.2,6.77872126]
[1753106636310,0.1304,3817.7,3817.6,2.61944677]
[1753106636754,0.1304,3817.7,3817.6,5.61944677]
[1753106639048,1e-08,3818.4,3818.2,2.61903514]
[1753106639251,1e-08,3818.4,3818.3,2.61896655]
[1753106639418,1e-08,3818.4,3818.2,2.61903043]
[1753106639640,1e-08,3818.4,3818.0,2.61916593]
[1753106639641,1e-08,3818.4,3818.3,2.61896655]
[1753106640881,1e-08,3818.4,3818.3,5.61896655]
[1753106641185,1e-08,3818.4,3818.3,7.7646221]
[1753106641746,1e-08,3818.4,3818.3,11.9226221]
[1753106642161,1e-08,3818.4,3818.3,12.4726221]
[1753106642364,0.002,3819.1,3819.0,2.61848651]
[1753106642568,0.002,3819.1,3819.0,10.58918651]
[1753106642896,0.002,3819.1,3819.0,7.75196753]
[1753106643052,0.002,3819.1,3819.0,11.29826137]
[1753106643259,0.002,3819.1,3819.0,11.76756137]
[1753106643576,0.002,3819.1,3819.0,11.89796137]
[1753106646794,0.002,3820.0,3819.8,5.61793811]
[1753106646979,0.002,3820.0,3819.8,10.60473811]
[1753106647152,0.002,3820.0,3819.8,11.20443811]
[1753106647357,0.1304,3820.4,3820.3,5.61759547]
[1753106647554,0.02,3820.9,3820.7,2.61732143]
[1753106647762,0.02,3820.9,3820.8,5.61725293]
[1753106648055,0.02,3820.9,3820.8,10.24255293]
[1753106648291,0.02,3820.9,3820.8,7.156]
[1753106648495,0.8209,3820.9,3820.4,3.0]
[1753106648697,0.1304,3820.8,3820.6,3.0]
[1753106648991,0.4615,3820.7,3820.2,0.1304]
[1753106649195,0.1304,3820.5,3820.1,4.156]
[1753106649413,0.8209,3820.9,3819.6,0.1304]
[1753106649414,0.8147,3820.2,3819.6,0.1304]
[1753106649694,0.1304,3819.9,3819.8,5.61792306]
[1753106649898,0.8147,3820.5,3819.8,3.08722306]
[1753106650199,0.1304,3820.4,3820.1,5.61771641]
[1753106650407,0.5919,3820.4,3820.1,3.0]
[1753106650557,0.99430211,3820.4,3820.1,3.0]
[1753106651410,0.1304,3820.4,3820.1,3.0]
[1753106652214,0.1304,3820.4,3820.1,2.61772807]
[1753106653002,0.1304,3820.4,3820.0,5.61777677]
[1753106653200,0.8147,3820.5,3820.0,5.61779369]
[1753106653376,0.1304,3820.4,3820.3,2.61756857]
[1753106653901,0.1304,3820.6,3820.2,0.02617663]
[1753106654212,0.26902,3820.6,3820.0,3.1304]
[1753106654392,0.4615,3820.5,3820.2,2.61765798]
[1753106654585,0.4615,3820.5,3820.1,2.61770966]
[1753106654797,0.26902,3820.6,3820.0,0.1304]
[1753106655014,0.1304,3820.2,3820.1,3.0]
[1753106655184,0.1304,3820.2,3820.1,5.61773252]
[1753106655624,0.1304,3820.2,3820.1,3.0]
[1753106655918,0.1304,3820.2,3820.1,5.61773252]
[1753106658488,1.2332,3820.8,3820.4,2.61749059]
[1753106658612,0.1304,3820.5,3820.4,2.61749059]
[1753106659743,0.1304,3820.5,3820.2,5.61766399]
[1753106659901,0.5893,3820.5,3820.3,2.61759438]
[1753106660399,0.1304,3820.5,3820.4,2.61752696]
[1753106661153,0.1304,3820.5,3820.3,2.61757106]
[1753106661504,0.1304,3820.5,3820.4,2.61752696]
[1753106661925,0.1324,3820.5,3820.4,2.61752696]
[1753106663538,0.002,3820.5,3820.4,2.61752696]
[1753106663722,0.002,3820.5,3820.4,12.29146235]
[1753106663933,0.002,3820.5,3820.4,12.42186235]
[1753106664461,1e-08,3820.5,3820.4,12.97186235]
[1753106666146,1e-08,3820.5,3820.4,8.26886235]
[1753106666347,1e-08,3820.5,3820.4,11.17942696]
[1753106666535,1e-08,3820.5,3820.4,6.43202696]
[1753106666745,1e-08,3820.5,3820.4,2.61752696]
[1753106666914,0.45890001,3820.5,3820.1,2.61771897]
[1753106667114,1e-08,3820.5,3820.2,2.61762112]
[1753106667348,1e-08,3820.5,3820.3,3.0]
[1753106667536,1e-08,3820.5,3820.4,10.58022696]
[1753106667718,1e-08,3820.5,3820.4,12.8063061]
[1753106668331,1e-08,3820.5,3820.4,11.17562696]
[1753106669049,1e-08,3820.5,3820.4,3.0]
[1753106669250,0.45890001,3820.5,3819.6,2.61807519]
[1753106669458,2.61752696,3820.4,3819.7,4.151]
[1753106669620,1.5632427,3820.3,3819.6,2.61802114]
[1753106669947,0.4589,3820.2,3819.6,2.61802114]
[1753106670127,0.4589,3820.2,3819.7,5.61799465]
[1753106670325,0.7967,3820.3,3819.8,2.61793811]
[1753106670645,1.2556,3820.3,3819.9,2.61786957]
[1753106670849,0.7967,3820.3,3820.2,2.61766399]
[1753106671022,0.7967,3820.3,3819.4,4.17718212]
[1753106671023,1e-08,3820.5,3820.4,2.61752696]
[1753106671229,1e-08,3820.5,3820.3,2.61759076]
[1753106671424,0.4589,3820.4,3820.3,2.61759459]
[1753106671623,1e-08,3820.5,3820.4,2.61752696]
[1753106672275,1e-08,3820.5,3820.4,5.61752696]
[1753106672861,1e-08,3820.5,3820.4,7.370163]
[1753106673215,1e-08,3820.5,3820.4,6.905163]
[1753106674215,1e-08,3820.5,3820.4,8.197463]
[1753106674616,0.02,3820.9,3820.8,2.61725293]
[1753106675272,0.02,3820.9,3820.8,3.10842545]
[1753106675467,0.02,3820.9,3820.8,3.08225293]
[1753106675760,0.02,3820.9,3820.8,4.36721193]
[1753106676056,0.02,3820.9,3820.8,2.61725293]
[1753106676622,0.02,3820.9,3820.8,3.08225293]
[1753106677550,0.02,3820.9,3820.8,2.61725293]
[1753106678195,0.02,3820.9,3820.8,6.10842545]
[1753106678342,0.02,3820.9,3820.8,6.08225293]
[1753106678667,0.02,3820.9,3820.8,7.36721193]
[1753106679070,0.02,3820.9,3820.8,7.49761193]
[1753106679281,0.002,3821.3,3821.2,3.98587895]
[1753106679499,0.002,3821.3,3821.2,11.13487895]
[1753106679778,0.002,3821.3,3821.2,11.73027895]
[1753106679984,1e-08,3821.3,3821.2,14.35781288]
[1753106680185,1e-08,3821.3,3821.2,8.37491288]
[1753106680347,1e-08,3821.3,3821.2,2.61697895]
[1753106680779,1e-08,3821.3,3821.2,3.10814873]
[1753106681096,1e-08,3821.3,3821.2,10.25714873]
[1753106681285,1e-08,3821.3,3821.2,11.06227895]
[1753106681475,1e-08,3821.3,3821.2,12.43021309]
[1753106682281,1e-08,3821.3,3821.2,9.76597895]
[1753106682642,1e-08,3821.3,3821.2,5.61697895]
[1753106682850,1.27790001,3821.3,3820.7,4.148]
[1753106683172,0.4589,3821.2,3820.3,2.61754387]
[1753106683347,0.7839,3820.9,3820.3,2.61759547]
[1753106683552,0.4589,3820.8,3820.1,2.6177261]
[1753106683874,0.4589,3820.8,3820.0,2.61779669]
[1753106684194,0.4589,3820.8,3819.9,4.148]
[1753106684354,0.4589,3820.8,3820.4,2.61751786]
[1753106684748,0.4589,3820.8,3820.4,2.61751355]
[1753106684968,0.4589,3820.8,3820.0,3.0]
[1753106685166,0.7839,3820.9,3820.1,0.02617732]
[1753106685482,0.7839,3820.9,3820.0,4.27658696]
[1753106685483,0.82850001,3821.3,3820.4,3.0]
[1753106685670,0.82850001,3821.3,3821.0,2.61706136]
[1753106686003,0.4589,3821.2,3820.8,2.61723261]
[1753106686203,0.82850001,3821.3,3821.0,2.61711593]
[1753106686372,0.82850001,3821.3,3820.3,5.61756879]
[1753106686579,0.82850001,3821.3,3821.0,2.61710308]
[1753106686789,0.82850001,3821.3,3820.9,2.61716967]
[1753106686976,1e-08,3821.3,3821.2,2.61697895]
[1753106687672,1e-08,3821.3,3821.2,2.64314873]
[1753106687872,1e-08,3821.3,3821.2,5.64314873]
[1753106688404,1e-08,3821.3,3821.2,5.61697895]
[1753106689164,0.42800001,3821.3,3821.2,3.0]
[1753106689370,0.42800001,3821.3,3821.2,5.61697895]
[1753106689569,1e-08,3821.3,3821.2,5.61697895]
[1753106690373,1e-08,3821.3,3821.2,6.44038753]
[1753106690773,1e-08,3821.3,3821.2,5.61697895]
[1753106691908,1e-08,3821.3,3821.2,6.11084873]
[1753106692217,1e-08,3821.3,3821.2,6.86924873]
[1753106692508,1e-08,3821.3,3821.2,6.84307895]
[1753106693284,1e-08,3821.3,3821.2,7.39307895]
[1753106693598,0.002,3821.7,3821.2,7.39307895]
[1753106693599,0.002,3821.7,3821.6,2.61670504]
[1753106693803,0.002,3821.7,3821.6,5.61670504]
[1753106693978,1e-08,3822.0,3821.9,16.12068942]
[1753106694174,1e-08,3822.0,3821.9,5.74689964]
[1753106694386,1e-08,3822.0,3821.9,11.13924876]
[1753106694714,1e-08,3822.0,3821.9,11.58078377]
[1753106695089,1e-08,3822.0,3821.9,13.04105375]
[1753106695639,1e-08,3822.0,3821.9,12.89788377]
[1753106696186,1e-08,3822.0,3821.9,12.54423117]
[1753106696425,1e-08,3822.0,3821.9,10.85634704]
[1753106696625,1e-08,3822.0,3821.9,8.2398474]
[1753106696805,1e-08,3822.0,3821.9,8.0425]
[1753106697121,1e-08,3822.0,3821.9,3.7671]
[1753106697489,1e-08,3822.0,3821.9,3.96619351]
[1753106697823,1e-08,3822.0,3821.9,4.90771286]
[1753106698730,1e-08,3822.0,3821.9,4.14061286]
[1753106699030,1e-08,3822.0,3821.9,3.0]
[1753106699231,2.61667453,3821.7,3821.4,0.1790534]
[1753106699414,0.428,3821.6,3821.4,0.1790534]
[1753106699727,0.42800001,3822.0,3821.4,0.1790534]
[1753106699942,0.1304,3821.7,3821.5,0.02616773]
[1753106700144,0.1304,3821.7,3821.4,0.1790534]
[1753106700343,0.428,3821.6,3821.4,0.1790534]
[1753106700549,0.1304,3821.7,3821.4,0.1790534]
[1753106700849,0.1304,3821.7,3821.4,0.20522181]
[1753106701010,0.1304,3821.7,3821.4,0.1790534]
[1753106701518,0.1304,3821.7,3821.6,3.0]
[1753106701742,0.1304,3821.7,3821.5,0.02616773]
[1753106701945,0.1304,3821.7,3821.6,2.61670504]
[1753106702159,0.13040001,3822.0,3821.5,0.02616773]
[1753106702461,2.61657055,3821.8,3821.4,0.3094534]
[1753106702677,0.428,3821.7,3821.4,0.3094534]
[1753106702875,0.13040001,3822.0,3821.4,0.3094534]
[1753106703076,0.428,3821.6,3821.4,0.3094534]
[1753106703381,0.13040001,3822.0,3821.8,2.61651178]
[1753106703543,1e-08,3822.0,3821.9,2.64266463]
[1753106703729,1e-08,3822.0,3821.9,5.61649964]
[1753106703929,1e-08,3822.0,3821.9,6.21459964]
[1753106704238,1e-08,3822.0,3821.9,7.180238]
[1753106705261,1e-08,3822.0,3821.9,11.324238]
[1753106706840,1e-08,3822.0,3821.9,10.856538]
[1753106707365,1e-08,3822.0,3821.9,11.324238]
[1753106708745,1e-08,3822.0,3821.9,10.855538]
[1753106708976,1e-08,3822.0,3821.9,9.88989964]
[1753106709578,1e-08,3822.0,3821.9,5.74689964]
[1753106709876,1e-08,3822.0,3821.9,3.1304]
[1753106710074,1e-08,3822.0,3821.9,5.61649964]
[1753106710455,1e-08,3822.0,3821.9,5.77306463]
[1753106710635,1e-08,3822.0,3821.9,5.74689964]
[1753106710830,1e-08,3822.0,3821.9,6.64165229]
[1753106711165,1e-08,3822.0,3821.9,7.0831873]
[1753106711479,1e-08,3822.0,3821.9,8.4091873]
[1753106712145,0.002,3822.8,3822.7,2.61595207]
[1753106712358,0.7781,3822.7,3822.0,4.143]
[1753106712558,1.3365,3822.7,3822.3,2.61615953]
[1753106712894,0.428,3822.6,3822.0,2.61636559]
[1753106713032,0.1304,3822.4,3822.3,3.0]
[1753106713462,0.7781,3822.7,3822.5,2.61603346]
[1753106713736,0.1324,3822.8,3822.7,2.61595207]
[1753106713943,0.002,3822.8,3822.7,2.61595207]
[1753106714250,0.002,3822.8,3822.7,5.61595207]
[1753106715542,0.002,3822.8,3821.4,1.04910138]
[1753106715543,0.43,3822.8,3821.4,1.04910138]
[1753106715766,0.7563,3822.7,3821.5,4.142]
[1753106716070,0.428,3822.6,3821.5,4.142]
[1753106716271,0.428,3822.6,3821.6,3.0]
[1753106716446,0.428,3822.6,3821.9,2.61648197]
[1753106716632,0.428,3822.6,3822.0,3.0]
[1753106716835,0.428,3822.6,3822.0,2.61640678]
[1753106717275,3.04407274,3822.6,3821.9,2.61646885]
[1753106717484,3.04407274,3822.6,3822.0,3.0]
[1753106717651,0.428,3822.6,3822.0,2.61641645]
[1753106717852,0.428,3822.6,3822.1,2.61635338]
[1753106718238,0.4684,3822.5,3822.0,3.0]
[1753106718440,0.7563,3822.2,3821.4,0.22760138]
[1753106718639,4.142,3822.7,3821.4,0.001]
[1753106718640,0.7563,3821.6,3821.4,0.001]
[1753106719045,3.08517351,3821.5,3821.4,0.001]
[1753106719248,0.4684,3821.5,3821.4,0.001]
[1753106719499,3.08517351,3821.5,3821.4,0.001]
[1753106719700,0.4684,3821.5,3821.4,0.001]
[1753106720179,0.7563,3821.6,3821.4,0.001]
[1753106720817,0.7903,3822.3,3821.4,0.26279773]
[1753106721084,0.7903,3822.3,3821.4,0.001]
[1753106721287,0.7903,3822.3,3822.1,2.61636243]
[1753106721494,0.7903,3822.3,3821.4,3.02716841]
[1753106721495,0.7903,3822.3,3822.2,2.61629428]
[1753106721996,0.8171,3822.7,3821.7,3.0]
[1753106722297,7.22644327,3822.6,3821.9,3.0]
[1753106722516,6.75804327,3822.6,3821.9,5.61648555]
[1753106722649,0.4684,3822.5,3821.9,5.61648555]
[1753106722985,3.08450453,3822.5,3821.9,3.0]
[1753106723173,0.7569,3822.3,3821.4,0.001]
[1753106723374,2.61638039,3822.1,3821.5,3.0]
[1753106723588,0.4684,3822.0,3821.4,2.61783881]
[1753106723899,0.4684,3822.0,3821.4,2.61782033]
[1753106724068,4.6094,3822.0,3821.4,2.61782033]
[1753106724567,4.6094,3822.0,3821.4,0.001]
[1753106724568,3.42540583,3821.9,3821.4,0.001]
[1753106724894,2.61676924,3821.6,3821.4,0.001]
[1753106725096,3.94900724,3821.5,3821.4,0.001]
[1753106725279,0.8089,3821.5,3821.4,0.001]
[1753106725584,5.4183,3821.5,3821.4,0.001]
[1753106726013,9.9150735,3821.5,3821.4,0.001]
[1753106726304,3.15729999,3821.5,3821.4,0.001]
[1753106726473,2.68889999,3821.5,3821.4,0.001]
[1753106726651,0.8089,3821.9,3821.5,2.61677351]
[1753106726852,4.9499,3821.9,3821.4,0.001]
[1753106727061,5.4183,3821.9,3821.4,0.001]
[1753106727289,5.4183,3821.9,3821.6,2.61667187]
[1753106727693,0.8089,3821.9,3821.4,0.001]
[1753106728000,4.141,3821.9,3821.8,2.6165681]
[1753106728201,0.8089,3822.2,3822.0,2.61642153]
[1753106728360,0.8089,3822.7,3822.2,2.61629078]
[1753106728560,0.4684,3822.6,3821.7,2.61663657]
[1753106728764,4.141,3822.5,3822.2,2.61623253]
[1753106729059,0.4684,3822.6,3821.7,2.61663657]
[1753106729259,4.141,3822.5,3822.3,2.61622143]
[1753106729464,0.8089,3822.7,3821.7,0.4436]
[1753106729655,0.002,3822.8,3822.3,2.61622583]
[1753106729860,4.143,3822.8,3822.6,2.61596929]
[1753106730075,4.143,3822.8,3822.7,2.61595207]
[1753106730277,0.002,3822.8,3822.7,2.61595207]
[1753106730484,4.143,3822.8,3822.7,2.61595207]
[1753106730690,0.002,3822.8,3822.7,2.61595207]
[1753106731185,0.002,3822.8,3822.7,5.61595207]
[1753106731418,0.002,3822.8,3822.7,6.05955207]
[1753106732316,0.002,3822.8,3822.7,6.52132431]
[1753106733415,0.4704,3822.8,3822.5,2.61608157]
[1753106733780,0.4704,3822.8,3822.0,4.142]
[1753106733781,0.4704,3822.8,3822.6,2.61597455]
[1753106734012,0.002,3822.8,3822.2,2.61626268]
[1753106734314,0.002,3822.8,3822.7,2.61595207]
[1753106734475,0.002,3822.8,3822.2,0.64544688]
[1753106734681,0.002,3822.8,3822.0,7.33326168]
[1753106734682,0.002,3822.8,3822.4,3.0]
[1753106735102,0.8324,3822.7,3822.4,3.0]
[1753106735304,0.4684,3822.6,3822.0,0.001]
[1753106735477,2.61617532,3822.4,3822.0,0.001]
[1753106735674,4.44745753,3822.3,3822.0,0.001]
[1753106735878,4.139,3822.3,3822.1,3.0]
[1753106736194,0.1304,3822.1,3822.0,0.001]
[1753106737102,0.1304,3822.1,3822.0,2.61743118]
[1753106737807,4.2694,3822.1,3822.0,0.001]
[1753106738379,4.2694,3822.1,3822.0,5.61743118]
[1753106738613,0.1304,3822.1,3822.0,5.61743118]
[1753106738783,4.139,3822.4,3822.3,2.61622583]
[1753106739383,4.2694,3822.4,3822.3,2.61622583]
[1753106739583,4.2694,3822.4,3822.0,0.001]
[1753106739584,4.139,3822.4,3822.0,0.001]
[1753106739778,0.8258,3822.2,3822.0,0.001]
[1753106740201,1.2942,3822.2,3822.0,0.001]
[1753106740403,4.139,3822.2,3822.1,5.61636273]
[1753106740614,4.139,3822.2,3822.0,0.001]
[1753106741015,4.139,3822.2,3822.1,3.0]
[1753106741393,0.4684,3822.6,3822.1,3.0]
[1753106741606,4.139,3822.5,3822.1,3.0]
[1753106741798,0.4684,3822.4,3822.1,3.0]
[1753106742134,0.4684,3822.4,3822.0,0.001]
[1753106742330,0.4684,3822.4,3822.0,2.61742704]
[1753106742530,4.139,3822.3,3822.0,2.61742073]
[1753106742703,0.8258,3822.7,3822.6,2.6160205]
[1753106742908,0.8258,3822.7,3822.3,2.61619575]
[1753106742909,4.9648,3822.7,3822.3,2.61619575]
[1753106743135,4.9648,3822.7,3822.0,2.61742862]
[1753106743339,5.4332,3822.7,3822.4,2.61615173]
[1753106743628,2.61611859,3822.5,3822.0,0.001]
[1753106743837,0.7623,3822.5,3822.0,0.001]
[1753106744035,0.4684,3822.4,3822.0,0.001]
[1753106744397,0.7623,3822.5,3822.0,0.001]
[1753106744398,4.139,3822.3,3822.0,0.001]
[1753106744731,4.139,3822.3,3822.2,2.61629428]
[1753106745254,4.139,3822.3,3822.1,2.61634327]
[1753106745449,4.139,3822.3,3822.1,2.61636273]
[1753106746018,4.139,3822.3,3822.0,2.61738537]
[1753106746216,4.139,3822.3,3822.1,2.61635688]
[1753106746443,0.53697,3822.3,3822.2,2.61629428]
[1753106746654,0.7623,3822.5,3822.4,2.61615738]
[1753106746830,0.7623,3822.5,3822.3,2.61621771]
[1753106746831,4.9003,3822.5,3822.3,2.61621771]
[1753106747151,4.138,3822.5,3822.4,2.61615738]
[1753106747452,0.002,3822.8,3822.7,2.61595207]
[1753106747453,0.7552,3822.8,3822.7,2.61595207]
[1753106747624,4.8932,3822.8,3822.7,2.61595207]
[1753106747954,4.14,3822.8,3822.7,2.61595207]
[1753106748163,4.14,3822.8,3822.5,2.61608894]
[1753106748317,4.14,3822.8,3822.4,2.61613564]
[1753106748516,4.138,3822.7,3822.4,2.61613564]
[1753106749218,0.4488,3822.8,3822.5,2.61606236]
[1753106749454,0.002,3822.8,3822.7,2.61595207]
[1753106752216,0.002,3822.8,3822.7,2.64211159]
[1753106752461,0.002,3822.8,3822.7,7.56662966]
[1753106752662,1e-08,3822.8,3822.7,8.09047014]
[1753106753466,1e-08,3822.8,3822.7,7.54047014]
[1753106755024,1e-08,3822.8,3822.7,11.67747014]
[1753106755220,1e-08,3822.8,3822.7,9.06151807]
[1753106755425,1e-08,3822.8,3822.7,4.92451807]
[1753106755659,1e-08,3822.8,3822.7,0.1304]
[1753106756845,1e-08,3822.8,3822.2,4.136]
[1753106757047,0.1304,3822.7,3822.1,0.9324]
[1753106757245,2.61603426,3822.6,3821.9,2.61649054]
[1753106757458,0.4468,3822.7,3822.1,2.61630892]
[1753106757459,0.1304,3822.5,3822.1,2.61630892]
[1753106757771,0.1304,3822.5,3822.1,3.0]
[1753106757930,0.1304,3822.5,3822.1,2.61631538]
[1753106758625,0.1304,3822.5,3822.2,3.0]
[1753106759174,3.19330362,3822.5,3822.0,0.001]
[1753106759357,0.76613036,3822.4,3822.0,0.001]
[1753106759656,0.1304,3822.3,3822.0,0.001]
[1753106760448,1e-08,3822.8,3822.7,2.61595207]
[1753106760652,1e-08,3822.8,3822.7,5.61595207]
[1753106760968,1e-08,3822.8,3822.7,8.31428493]
[1753106762233,1e-08,3822.8,3822.7,8.86428493]
[1753106763934,0.02,3823.9,3823.8,2.61519953]
[1753106766979,0.02,3823.9,3823.4,0.1304]
[1753106767181,0.1304,3823.8,3823.3,3.0]
[1753106767479,0.1304,3823.8,3823.7,2.61526793]
[1753106768166,0.26916,3823.8,3823.7,2.61526793]
[1753106768575,0.1304,3823.8,3823.7,2.61526793]
[1753106768779,0.02,3823.9,3823.8,5.61519953]
[1753106769593,1.2572,3823.9,3823.4,0.1304]
[1753106769753,1.2572,3823.9,3823.2,0.7974]
[1753106769754,0.1304,3823.6,3823.5,5.61538437]
[1753106770355,0.02,3823.9,3823.8,2.61519953]
[1753106771486,0.7615,3823.8,3823.5,5.6153763]
[1753106771669,0.13587,3823.7,3823.6,2.61533633]
[1753106771983,0.7615,3823.8,3823.7,2.61526793]
[1753106772180,0.8919,3823.8,3823.7,2.61526793]
[1753106772357,1.3387,3823.8,3823.5,3.0]
[1753106772556,0.8919,3823.8,3823.7,2.61526793]
[1753106772968,0.8919,3823.8,3823.6,2.6153176]
[1753106773352,0.4468,3823.7,3823.6,2.6153176]
[1753106773553,0.8919,3823.8,3823.7,2.61526793]
[1753106774895,0.8919,3823.8,3823.6,2.61527467]
[1753106775216,1.3387,3823.8,3823.7,2.61526793]
[1753106775382,1.47457,3823.8,3823.7,2.61526793]
[1753106776379,1.02777,3823.8,3823.7,2.61526793]
[1753106776579,0.8919,3823.8,3823.7,2.61526793]
[1753106776820,0.02,3823.9,3823.8,2.61519953]
[1753106777388,0.02,3823.9,3823.8,2.64135152]
[1753106777712,0.02,3823.9,3823.8,2.61519953]
[1753106779194,0.02,3823.9,3823.8,5.61519953]